lending/lending_fUSD_20250218
["ID","MTS","AMOUNT","RATE_DAILY","PERIOD"]
[353466644,1739861439980,-1095.6062822,0.00013397,14]
[353466645,1739861439992,-3999.64712997,0.00013397,14]
[353466646,1739861440026,-41252.6885709,0.00013397,14]
[353466647,1739861440035,-150.0,0.00013397,2]
[353466648,1739861440045,-150.00000001,0.00013397,2]
[353466649,1739861440054,-150.0,0.00013397,2]
[353466650,1739861440064,-1295.75418266,0.00013399,2]
[353466651,1739861440074,-224.87622842,0.00013399,2]
[353466652,1739861440083,-500.0,0.00013399,2]
[353466653,1739861440092,-3127.23931489,0.00013399,2]
[353466654,1739861440101,-1091.0,0.000134,2]
[353466655,1739861440111,-15521.68234014,0.000134,3]
[353466656,1739861440120,-210701.70054207,0.000134,5]
[353466657,1739861440161,-16500.000001,0.000134,5]
[353466681,1739861442772,-6454.2249446,0.000134,5]
[353466682,1739861442823,-811.77818681,0.000134,5]
[353466683,1739861442862,-334.71532489,0.000134,5]
[353466684,1739861442900,-688.68799933,0.000134,5]
[353466685,1739861442943,-16268.07293523,0.000134,5]
[353466686,1739861442992,-317168.29863253,0.000134,5]
[353466708,1739861445699,-2712.90094188,0.000134,5]
[353466709,1739861445714,-5336.39999985,0.000134,5]
[353466710,1739861445737,-856.20926424,0.000134,5]
[353466711,1739861445767,-7861.18850075,0.000134,5]
[353466712,1739861445779,-3622.53010337,0.000134,5]
[353466713,1739861445842,-395301.7656383,0.000134,5]
[353466714,1739861445854,-3214.73998113,0.000134,5]
[353466715,1739861445866,-937.69234994,0.000134,5]
[353466716,1739861445901,-7325.74744456,0.000134,5]
[353466819,1739862631929,-151.69,0.00010137,2]
[353466820,1739862631939,-500.0,0.00010543,2]
[353466821,1739862631948,-500.0,0.00010543,2]
[353466822,1739862631958,-790.09,0.00010543,2]
[353466823,1739862631967,-595.35884583,0.00010595,2]
[353466824,1739862631977,-200.0,0.00011151,2]
[353466825,1739862631986,-200.0,0.00011151,2]
[353466826,1739862631996,-1060.0,0.00011153,2]
[353466827,1739862632007,-240.894023,0.00011681,2]
[353466828,1739862632016,-1060.0,0.0001174,2]
[353466829,1739862632026,-1612.27,0.00011861,2]
[353466830,1739862632036,-1177.96,0.00011898,2]
[353466831,1739862632045,-668.66618496,0.000119,2]
[353466832,1739862632057,-648.96466403,0.000119,2]
[353466833,1739862632068,-50.58915101,0.000119,2]
[353466834,1739862632077,-1273.18179456,0.00011937,2]
[353466835,1739862632089,-2119.98820544,0.00011937,2]
[353466836,1739862632099,-23900.0,0.00011946,2]
[353466837,1739862632108,-1000.0,0.00011952,2]
[353466838,1739862632117,-200.0,0.00012044,2]
[353466839,1739862632127,-150.0,0.00012058,2]
[353466840,1739862632136,-150.0,0.00012058,2]
[353466841,1739862632147,-150.0,0.00012058,2]
[353466842,1739862632156,-150.0,0.00012058,2]
[353466843,1739862632167,-6733.78,0.00012075,2]
[353466844,1739862632177,-1060.0,0.00012358,2]
[353466845,1739862632187,-1500.0,0.00012454,2]
[353466846,1739862632196,-568.43,0.00012474,2]
[353466847,1739862632205,-280.42,0.00012481,2]
[353466848,1739862632215,-222.4,0.00012506,2]
[353466849,1739862632225,-619.0,0.0001251,2]
[353466850,1739862632235,-2661.35,0.00012672,2]
[353466851,1739862632245,-790.09,0.00012807,2]
[353466852,1739862632255,-170.71052822,0.00012877,2]
[353466853,1739862632265,-170.71052822,0.00012932,2]
[353466854,1739862632275,-1060.0,0.00013008,2]
[353466855,1739862632284,-170.71052822,0.00013014,2]
[353466856,1739862632294,-170.71052822,0.00013068,2]
[353466857,1739862632303,-500.0,0.000131,2]
[353466869,1739862632465,-170.71052822,0.00013123,2]
[353466871,1739862632479,-164.5473398,0.00013131,2]
[353466873,1739862632490,-170.71052822,0.00013178,2]
[353466875,1739862632499,-170.71052822,0.0001326,2]
[353466877,1739862632509,-2177.94669805,0.0001327,2]
[353466879,1739862632518,-768.03980402,0.000133,2]
[353466881,1739862632527,-2292.27698217,0.000133,2]
[353466883,1739862632537,-2292.27698218,0.000133,2]
[353466885,1739862632547,-170.71052822,0.00013315,2]
[353466887,1739862632557,-170.71052822,0.0001337,2]
[353466889,1739862632566,-166.58630794,0.00013373,2]
[353466891,1739862632575,-159.74995814,0.00013373,2]
[353466893,1739862632584,-500.0,0.00013399,2]
[353466894,1739862632593,-6039.51053799,0.00013399,3]
[353466895,1739862632603,-1083.0,0.000134,2]
[353466896,1739862632613,-7760.84117007,0.000134,3]
[353466897,1739862632623,-176917.174907,0.000134,5]
[353466898,1739862632640,-11162.57128165,0.000134,5]
[353466899,1739862632658,-1131.36059565,0.000134,5]
[353466900,1739862632671,-579675.27128382,0.000134,5]
[353466901,1739862632682,-650.07127247,0.000134,5]
[353466902,1739862632693,-257.196,0.000134,5]
[353466903,1739862632708,-19045.84637005,0.000134,5]
[353466904,1739862632720,-267.39858175,0.000134,5]
[353466905,1739862632735,-1618.07514123,0.000134,5]
[353466910,1739862637720,-3574.0,0.000134,3]
[353466911,1739862637789,-270.49800615,0.000134,3]
[353466912,1739862637801,-35.92257888,0.000134,3]
[353466913,1739862637810,-575.02742112,0.000134,5]
[353466914,1739862637849,-544.32727247,0.000134,5]
[353466915,1739862637860,-1390.04541452,0.000134,5]
[353466916,1739862637871,-451.15504761,0.000134,5]
[353466917,1739862637882,-1052.0,0.000134,5]
[353466918,1739862637915,-2943.84242347,0.000134,5]
[353466919,1739862637928,-255.3900018,0.000134,5]
[353466920,1739862637939,-11710.53549523,0.000134,5]
[353466921,1739862638002,-759.499977,0.000134,5]
[353466922,1739862638013,-62027.69906863,0.000134,5]
[353466923,1739862638024,-7086.70757354,0.000134,5]
[353466924,1739862638066,-313.076106,0.000134,5]
[353466959,1739862640091,-1290.0,0.000133,2]
[353466960,1739862640100,-1540.02928545,0.000134,5]
[353466961,1739862640111,-11336.83571536,0.000134,5]
[353466962,1739862640123,-1983.63196406,0.000134,5]
[353466963,1739862640230,-24571.526139,0.000134,5]
[353466964,1739862640241,-652.01062997,0.000134,5]
[353466965,1739862640252,-395.472,0.000134,5]
[353466966,1739862640263,-2666.2,0.000134,5]
[353466967,1739862640311,-732.65046944,0.000134,5]
[353466968,1739862640322,-585.01327522,0.000134,5]
[353466969,1739862640333,-234941.805,0.000134,5]
[353466970,1739862640418,-305.0000025,0.000134,5]
[353466971,1739862640473,-1500.47,0.000134,5]
[353466972,1739862640484,-3297.97908494,0.000134,5]
[353466973,1739862640496,-1888.59743706,0.000134,5]
[353466974,1739862640507,-456.87955012,0.000134,5]
[353466975,1739862640518,-1219.11157429,0.000134,5]
[353466987,1739862642876,-976.0,0.000134,2]
[353466989,1739862642886,-1526.48797883,0.000134,5]
[353466991,1739862642897,-2182.66221015,0.000134,5]
[353466994,1739862642909,-521.55,0.000134,5]
[353466996,1739862642920,-296.21242944,0.000134,5]
[353466998,1739862642935,-443.4506406,0.000134,5]
[353467002,1739862642963,-930.87438887,0.000134,5]
[353467003,1739862642974,-541.54300055,0.000134,5]
[353467004,1739862642985,-1450.31865778,0.000134,5]
[353467005,1739862642996,-113896.48902696,0.000134,5]
[353467006,1739862643007,-846.0,0.000134,5]
[353467007,1739862643018,-495.58079881,0.000134,5]
[353467008,1739862643030,-1325.30583642,0.000134,5]
[353467009,1739862643041,-1711.87058023,0.000134,5]
[353467010,1739862643052,-5580.74609874,0.000134,5]
[353467011,1739862643196,-81151.82153273,0.000134,5]
[353467012,1739862643216,-4208.19490955,0.000134,5]
[353467013,1739862643227,-4200.04995,0.000134,5]
[353467014,1739862643248,-537.35,0.000134,5]
[353467015,1739862643259,-926.4000006,0.000134,5]
[353467016,1739862643281,-1379.01383578,0.000134,5]
[353467020,1739862645749,-400.0,0.000134,5]
[353467021,1739862645762,-6656.18841251,0.000134,5]
[353467022,1739862645834,-4912.71591242,0.000134,5]
[353467023,1739862645847,-1627.2,0.000134,5]
[353467024,1739862645918,-7809.03247051,0.000134,5]
[353467025,1739862645932,-1014.58,0.000134,5]
[353467026,1739862645944,-1051.96977662,0.000134,5]
[353467027,1739862645956,-1109.97733375,0.000134,5]
[353467028,1739862645968,-725.00574762,0.000134,5]
[353467029,1739862645978,-345.27883011,0.000134,5]
[353467030,1739862645990,-867.194902,0.000134,5]
[353467031,1739862646001,-1834113.51070351,0.000134,5]
[353467032,1739862646012,-576.70999178,0.000134,5]
[353467033,1739862646023,-1104.89183922,0.000134,5]
[353467034,1739862646034,-432.00902886,0.000134,5]
[353467035,1739862646045,-23003.53237964,0.000134,5]
[353467036,1739862646057,-519.38616319,0.000134,5]
[353467037,1739862646068,-1536.06039528,0.000134,5]
[353467038,1739862646079,-987.4,0.000134,5]
[353467039,1739862646097,-1023.52738521,0.000134,5]
[353467040,1739862646108,-5986.41110973,0.000134,5]
[353467084,1739863832049,-276.611373,9.552e-05,2]
[353467085,1739863832060,-300.0,9.6e-05,3]
[353467086,1739863832069,-600.0,9.7e-05,3]
[353467087,1739863832079,-1000.0,9.8e-05,3]
[353467088,1739863832090,-1300.0,9.9e-05,3]
[353467089,1739863832100,-500.0,9.973e-05,2]
[353467090,1739863832109,-39.36774385,9.999e-05,2]
[353467091,1739863832123,-110.63225615,9.999e-05,2]
[353467092,1739863832133,-430.83774585,9.999e-05,2]
[353467093,1739863832151,-69.16225415,9.999e-05,2]
[353467094,1739863832161,-481.46627321,0.0001,2]
[353467095,1739863832174,-8646.61344566,0.0001,2]
[353467096,1739863832235,-1276.275015,0.0001,2]
[353467097,1739863832275,-2039.40212491,0.0001,2]
[353467098,1739863832286,-408.0,0.0001,2]
[353467099,1739863832297,-59155.44598076,0.0001,2]
[353467100,1739863832314,-1284.422624,0.0001,2]
[353467543,1739863837940,-4281773.58719141,0.0001,2]
[353467544,1739863838088,-661.4798076,0.0001,2]
[353467545,1739863838100,-8305.31693,0.0001,2]
[353467546,1739863838112,-9222.2322,0.0001,2]
[353467547,1739863838124,-2347.82670905,0.0001,2]
[353467548,1739863838150,-586.80559217,0.0001,2]
[353467567,1739863840222,-2744.9374254,0.0001,2]
[353467568,1739863840233,-333.58518724,0.0001,2]
[353467569,1739863840265,-504.40111101,0.0001,2]
[353467570,1739863840407,-3336.597,0.0001,2]
[353467571,1739863840453,-536.2137172,0.0001,2]
[353467735,1739863843058,-2549.0,0.0001,2]
[353467736,1739863843179,-9847.1,0.0001,2]
[353467737,1739863843191,-4258.96434439,0.0001,2]
[353467738,1739863843202,-963.02325225,0.0001,2]
[353467739,1739863843218,-3536.28,0.0001,2]
[353467740,1739863843345,-7129.25294352,0.0001,2]
[353467750,1739863845956,-1291.477795,0.0001,2]
[353467752,1739863845968,-520.38152683,0.0001,2]
[353467754,1739863845981,-388.91935723,0.0001,2]
[353467756,1739863845992,-350.13122922,0.0001,2]
[353467757,1739863846015,-414169.30713551,0.0001,2]
[353467758,1739863846050,-5196.0362478,0.0001,2]
[353467759,1739863846080,-432.9,0.0001,2]
[353467760,1739863846119,-28661.926003,0.0001,2]
[353467761,1739863846131,-9514.47,0.0001,2]
[353467762,1739863846267,-588.09886644,0.0001,2]
[353467785,1739865032250,-415.4413,8.973e-05,2]
[353467786,1739865032260,-151.5889276,9.83e-05,2]
[353467787,1739865032311,-559.4910724,9.83e-05,2]
[353467788,1739865032321,-200.0,9.87e-05,2]
[353467789,1739865032331,-12.6509005,9.87e-05,2]
[353467790,1739865032474,-187.3490995,9.87e-05,2]
[353467791,1739865032483,-200.0,9.87e-05,2]
[353467792,1739865032494,-1000.0,9.9e-05,2]
[353467793,1739865032506,-200.33643053,9.95e-05,2]
[353467794,1739865032515,-150.0,9.973e-05,2]
[353467795,1739865032523,-150.0,9.999e-05,2]
[353467796,1739865032532,-300.0,9.999e-05,2]
[353467797,1739865032542,-216841.11830333,0.0001,2]
[353467798,1739865032629,-596.13913433,0.0001,2]
[353467799,1739865032640,-539.70620158,0.0001,2]
[353467800,1739865032651,-4593.8179205,0.0001,2]
[353468153,1739865043348,-714.76785034,0.0001,2]
[353468159,1739865043570,-4284.99174372,0.0001,2]
[353468175,1739866158887,5517.0,8.817e-05,2]
[353468183,1739866232386,-675.52,9.452e-05,2]
[353468184,1739866232395,-200.0,9.643e-05,2]
[353468185,1739866232405,-200.0,9.783e-05,2]
[353468186,1739866232415,-150.0,9.867e-05,2]
[353468187,1739866232425,-1000.0,9.9e-05,2]
[353468188,1739866232435,-2677.33162773,9.9e-05,2]
[353468189,1739866232445,-300.0,9.909e-05,2]
[353468190,1739866232455,-3101.20632678,9.91e-05,2]
[353468191,1739866232468,-864.56962745,9.91e-05,2]
[353468192,1739866232597,-183.31060599,9.91e-05,2]
[353468193,1739866232606,-150.0,9.999e-05,2]
[353468194,1739866232616,-2222.04655012,0.0001,2]
[353468195,1739866232626,-5738.36284389,0.0001,2]
[353468196,1739866232703,-300.0,0.0001,2]
[353468301,1739866238407,-1456.17440791,0.0001,2]
[353468302,1739866238446,-421.18710031,0.0001,2]
[353468303,1739866238544,-1152.81994202,0.0001,2]
[353468500,1739866240689,-5823.12374433,0.0001,2]
[353468507,1739866240745,-487.52557497,0.0001,2]
[353468509,1739866240756,-1600.0,0.0001,2]
[353468514,1739866240798,-997.65756837,0.0001,2]
[353468516,1739866240809,-12094.68820193,0.0001,2]
[353468518,1739866240820,-561.988505,0.0001,2]
[353468523,1739866240855,-385.95255073,0.0001,2]
[353468525,1739866240866,-5431.97282344,0.0001,2]
[353468527,1739866240876,-555.87493619,0.0001,2]
[353468529,1739866240887,-155.80629601,0.0001,2]
[353468531,1739866240899,-200.0,0.0001,2]
[353468533,1739866240908,-4000.0,0.0001,2]
[353468535,1739866240918,-178.0,0.0001,3]
[353468537,1739866240927,-509.76486774,0.0001,2]
[353468539,1739866240937,-229.32161768,0.0001,2]
[353468541,1739866240947,-200.0,0.000101,2]
[353468543,1739866240956,-155.07,0.00010137,2]
[353468545,1739866240966,-251.76,0.00010137,2]
[353468547,1739866240976,-151.69,0.00010137,2]
[353468549,1739866240985,-504.0,0.00010164,2]
[353468551,1739866240994,-200.0,0.00010201,2]
[353468553,1739866241003,-200.0,0.00010303,2]
[353468555,1739866241012,-200.0,0.00010397,2]
[353468557,1739866241021,-200.0,0.00010406,2]
[353468559,1739866241031,-150.0,0.00010806,2]
[353468561,1739866241039,-420.0,0.000109,2]
[353468563,1739866241049,-2000.0,0.00010959,2]
[353468565,1739866241058,-200.0,0.00010959,2]
[353468567,1739866241067,-150.0,0.00010999,2]
[353468569,1739866241075,-300.71,0.0001133,2]
[353468571,1739866241085,-2000.0,0.00011346,2]
[353468573,1739866241098,-560.86833894,0.00011368,2]
[353468616,1739866243524,-439.13166106,0.00011368,2]
[353468617,1739866243535,-1135.5,0.00011387,2]
[353468618,1739866243546,-2487.59856334,0.00011395,2]
[353468619,1739866243575,-456.358145,0.00011395,2]
[353468620,1739866243632,-20956.04329166,0.00011395,2]
[353468621,1739866243643,-500.0,0.00011409,2]
[353468622,1739866243653,-500.0,0.00011519,2]
[353468623,1739866243662,-167.63,0.00011612,2]
[353468624,1739866243671,-152.39,0.00011631,2]
[353468625,1739866243682,-696.68,0.00011645,2]
[353468627,1739866243692,-152.39,0.00011689,2]
[353468628,1739866243702,-675.52,0.00011715,2]
[353468629,1739866243712,-509.76486772,0.00011749,2]
[353468630,1739866243721,-256.0,0.0001199,2]
[353468631,1739866243731,-150.0,0.00012058,2]
[353468632,1739866243741,-150.0,0.00012058,2]
[353468634,1739866243751,-150.0,0.00012058,2]
[353468636,1739866243761,-150.0,0.00012089,2]
[353468637,1739866243770,-150.0,0.00012121,2]
[353468638,1739866243779,-150.0,0.00012153,2]
[353468639,1739866243789,-150.0,0.00012185,2]
[353468640,1739866243799,-150.0,0.00012217,2]
[353468641,1739866243809,-150.0,0.00012225,2]
[353468642,1739866243819,-150.0,0.00012249,2]
[353468643,1739866243828,-150.0,0.00012249,2]
[353468644,1739866243838,-150.0,0.00012281,2]
[353468645,1739866243849,-150.0,0.00012313,2]
[353468646,1739866243860,-150.0,0.00012345,2]
[353468647,1739866243870,-150.0,0.00012377,2]
[353468648,1739866243880,-150.0,0.00012392,2]
[353468649,1739866243892,-150.0,0.00012408,2]
[353468650,1739866243902,-150.0,0.0001244,2]
[353468652,1739866243912,-150.0,0.0001244,2]
[353468653,1739866243922,-150.0,0.00012472,2]
[353468654,1739866243932,-150.0,0.00012504,2]
[353468655,1739866243941,-150.0,0.00012536,2]
[353468656,1739866243950,-150.0,0.0001256,2]
[353468657,1739866243959,-9.14240235,0.00012568,2]
[353468658,1739866243973,-140.85759765,0.00012568,2]
[353468659,1739866243983,-150.0,0.000126,2]
[353468660,1739866243993,-343.32217414,0.000126,4]
[353468663,1739866246245,-3446.81175735,0.0001,2]
[353468665,1739866246255,-56.67782586,0.000126,4]
[353468667,1739866246265,-150.0,0.00012632,2]
[353468669,1739866246275,-150.0,0.00012632,2]
[353468670,1739866246285,-150.0,0.00012664,2]
[353468671,1739866246295,-150.0,0.00012695,2]
[353468672,1739866246305,-800.0,0.000127,4]
[353468673,1739866246316,-150.0,0.00012727,2]
[353468674,1739866246326,-150.0,0.00012727,2]
[353468675,1739866246336,-102.24847074,0.00012747,2]
[353468676,1739866246352,-198.46152926,0.00012747,2]
[353468677,1739866246363,-150.0,0.00012759,2]
[353468678,1739866246374,-1000.0,0.00012789,2]
[353468679,1739866246384,-150.0,0.00012791,2]
[353468680,1739866246394,-1099.86813679,0.000128,4]
[353468681,1739866246517,-100.13186321,0.000128,4]
[353468682,1739866246527,-150.0,0.00012823,2]
[353468683,1739866246537,-150.0,0.00012823,2]
[353468684,1739866246547,-150.0,0.00012855,2]
[353468685,1739866246556,-150.0,0.00012887,2]
[353468686,1739866246566,-150.0,0.00012895,2]
[353468687,1739866246576,-1600.0,0.000129,4]
[353468688,1739866246585,-150.0,0.00012919,2]
[353468689,1739866246595,-150.0,0.00012951,2]
[353468690,1739866246604,-150.0,0.00012983,2]
[353468691,1739866246614,-1249.0,0.00012983,4]
[353468692,1739866246625,-5516.4771847,0.00013,2]
[353468693,1739866246637,-3014.12883596,0.00013,2]
[353468694,1739866953019,-100000.0,0.000134,14]
[353468695,1739866989975,-150000.0,0.000134,14]
[353468696,1739867047409,103218.21008043,0.000134,14]
[353468697,1739867131877,257.73955817,8.818e-05,2]
[353468727,1739867431552,-479.42833868,9.882e-05,2]
[353468728,1739867431670,-128.53166132,9.882e-05,2]
[353468729,1739867431687,-200.0,9.927e-05,2]
[353468730,1739867431697,-200.0,9.97e-05,2]
[353468731,1739867431706,-500.4780144,9.973e-05,2]
[353468732,1739867431715,-500.0,9.973e-05,2]
[353468733,1739867431725,-150.0,9.999e-05,2]
[353468734,1739867431735,-500.0,9.999e-05,2]
[353468735,1739867431745,-500.0,9.999e-05,2]
[353468736,1739867431926,-500.0,9.999e-05,2]
[353468740,1739867432011,-209.55830929,9.999e-05,2]
[353468743,1739867432024,-500.0,9.999e-05,2]
[353468745,1739867432034,-500.0,9.999e-05,2]
[353468747,1739867432043,-500.0,9.999e-05,2]
[353468749,1739867432052,-500.0,9.999e-05,2]
[353468751,1739867432061,-8506.30833811,0.0001,2]
[353468756,1739867432097,-1577.36276331,0.0001,2]
[353468757,1739867432108,-702.6897265,0.0001,2]
[353468760,1739867432119,-993.6565235,0.0001,2]
[353469298,1739867437472,-1589.07529685,0.0001,2]
[353469305,1739867437530,-782.895,0.0001,2]
[353469312,1739867437583,-2760.92510709,0.0001,2]
[353469318,1739867437638,-33996.95258189,0.0001,2]
[353469320,1739867437650,-414.04008287,0.0001,2]
[353469326,1739867437694,-833.69583873,0.0001,2]
[353469328,1739867437706,-1471.09,0.0001,2]
[353469330,1739867437718,-1520.6853254,0.0001,2]
[353469366,1739867439693,-184.73181266,9.999e-05,2]
[353469367,1739867439703,-146.33818734,0.0001,2]
[353469368,1739867439748,-28019.2140588,0.0001,2]
[353469369,1739867439760,-800.66390611,0.0001,2]
[353469370,1739867439771,-401.44214624,0.0001,2]
[353469371,1739867439782,-68656.38364529,0.0001,2]
[353469372,1739867439874,-250130.1160997,0.0001,2]
[353469373,1739867439910,-527.55520127,0.0001,2]
[353469375,1739867439972,-314.101881,0.0001,2]
[353469377,1739867439984,-3879.12227935,0.0001,2]
[353469378,1739867439995,-668.30411137,0.0001,2]
[353469392,1739867442509,-29593.38321009,0.0001,2]
[353469393,1739867442564,-749.87183442,0.0001,2]
[353469394,1739867442576,-6397.3587318,0.0001,2]
[353469395,1739867442587,-1182.94805861,0.0001,2]
[353469396,1739867442599,-3953.81927455,0.0001,2]
[353469397,1739867442671,-9518.59284828,0.0001,2]
[353469398,1739867442871,-1776.20347505,0.0001,2]
[353469399,1739867442882,-4836.0,0.0001,2]
[353469400,1739867442893,-699.5899999,0.0001,2]
[353469401,1739867442905,-424.49932413,0.0001,2]
[353469402,1739867442917,-628116.01021385,0.0001,2]
[353469403,1739867442928,-5161.76287471,0.0001,2]
[353469433,1739868556555,1011.1,8.219e-05,2]
[353469447,1739868631675,-991.33384822,8.935e-05,2]
[353469448,1739868631690,-815.46,8.935e-05,2]
[353469449,1739868631701,-475.49962009,8.935e-05,2]
[353469450,1739868631712,-476.58653169,8.935e-05,2]
[353469451,1739868631723,-200.0,9.036e-05,2]
[353469452,1739868631732,-124.20295478,9.036e-05,2]
[353469453,1739868631743,-972.86278298,9.036e-05,2]
[353469454,1739868631753,-250.0,9.137e-05,2]
[353469455,1739868631765,-300.0,9.231e-05,2]
[353469456,1739868631774,-435.98583843,9.232e-05,2]
[353469457,1739868631786,-1850.45,9.232e-05,2]
[353469458,1739868631797,-960.850298,9.232e-05,2]
[353469459,1739868631808,-406.88,9.232e-05,2]
[353469460,1739868631820,-815.2855,9.232e-05,2]
[353469461,1739868631830,-334.37507083,9.232e-05,2]
[353469462,1739868631856,-442.30929607,9.232e-05,2]
[353469463,1739868631867,-1243.56644107,9.232e-05,2]
[353469464,1739868631942,-5100.0,9.232e-05,2]
[353469465,1739868631954,-387.645,9.232e-05,2]
[353469466,1739868631998,-11922.6525556,9.232e-05,2]
[353469467,1739868632008,-1279.43,9.28e-05,2]
[353469468,1739868632018,-2000.0,9.294e-05,2]
[353469469,1739868632027,-472.15,9.436e-05,2]
[353469470,1739868632036,-150.0,9.452e-05,2]
[353469471,1739868632045,-1500.0,9.483e-05,2]
[353469472,1739868632055,-728.42,9.485e-05,2]
[353469473,1739868632065,-500.0,9.562e-05,2]
[353469474,1739868632074,-165.12,9.579e-05,2]
[353469475,1739868632083,-2851.91,9.655e-05,2]
[353469476,1739868632093,-1500.0,9.8e-05,3]
[353469477,1739868632103,-200.0,9.828e-05,2]
[353469479,1739868632112,-178.87,9.869e-05,2]
[353469480,1739868632121,-3594.91029993,9.9e-05,2]
[353469481,1739868632132,-908.67840007,9.9e-05,2]
[353469494,1739868632264,-1343.1913,9.9e-05,2]
[353469497,1739868632279,-3100.0,9.9e-05,3]
[353469499,1739868632289,-4028.23644937,9.91e-05,2]
[353469501,1739868632298,-1000.0,9.935e-05,2]
[353469503,1739868632307,-709.27900351,9.935e-05,2]
[353469505,1739868632316,-500.4622035,9.973e-05,2]
[353469506,1739868632325,-500.0,9.973e-05,2]
[353469507,1739868632334,-7851.22407662,9.986e-05,2]
[353469509,1739868632343,-1313.52087338,9.999e-05,3]
[353469510,1739868632352,-4497.96272133,9.999e-05,2]
[353469513,1739868632369,-1937.21327867,9.999e-05,2]
[353469515,1739868632378,-18.6162378,9.999e-05,2]
[353469517,1739868632390,-208.9097622,9.999e-05,2]
[353469518,1739868632399,-1000.0,9.999e-05,2]
[353469519,1739868632408,-1000.0,9.999e-05,2]
[353469521,1739868632417,-199.65395295,9.999e-05,2]
[353469523,1739868632427,-1593.38138604,0.0001,2]
[353469543,1739868637891,-387.3,0.0001,2]
[353469544,1739868637972,-1002.61575977,0.0001,2]
[353469712,1739868639741,-28644.95339999,0.0001,2]
[353469715,1739868639758,-6003.9,0.0001,2]
[353469720,1739868639790,-7324.39477281,0.0001,2]
[353469722,1739868639807,-2558.48718519,0.0001,2]
[353469725,1739868639823,-841.90817419,0.0001,2]
[353469728,1739868639840,-324.412088,0.0001,2]
[353469731,1739868639856,-2000.39511513,0.0001,2]
[353469736,1739868639896,-4864.221952,0.0001,2]
[353469754,1739868640059,-2173.19498958,0.0001,2]
[353469762,1739868640121,-286.293,0.0001,2]
[353470026,1739868642755,-78616.59854648,0.0001,2]
[353470033,1739868642814,-287267.37412102,0.0001,2]
[353470054,1739868643010,-579.40730828,0.0001,2]
[353470056,1739868643021,-5150.75156216,0.0001,2]
[353470058,1739868643032,-364.42270374,0.0001,2]
[353470061,1739868643051,-837.12317062,0.0001,2]
[353470067,1739868643097,-1306677.09789436,0.0001,2]
[353470069,1739868643107,-370.60181996,0.0001,2]
[353470071,1739868643117,-155.81408633,0.0001,2]
[353470073,1739868643126,-550.0,0.0001,2]
[353470075,1739868643136,-4000.0,0.0001,2]
[353470077,1739868643146,-371.32113895,0.0001,2]
[353470079,1739868643156,-4700.0,0.0001,3]
[353470081,1739868643165,-325.28335274,0.0001,2]
[353470083,1739868643175,-247.22594664,0.0001,2]
[353470085,1739868643184,-497.66,0.0001,2]
[353470087,1739868643194,-508.1,0.0001,2]
[353470089,1739868643204,-490.25,0.0001,2]
[353470090,1739868643215,-506.07,0.0001,2]
[353470091,1739868643225,-200.0,0.00010051,2]
[353470092,1739868643235,-363.22,0.00010137,2]
[353470093,1739868643244,-173.81,0.00010137,2]
[353470094,1739868643253,-415.87832048,0.00010147,2]
[353470095,1739868643263,-300.0,0.00010154,2]
[353470096,1739868643272,-3911.0,0.000103,5]
[353470097,1739868643283,-274.0,0.00010341,2]
[353470098,1739868643292,-1011.1,0.00010421,2]
[353470099,1739868643301,-371.32113894,0.00010516,2]
[353470100,1739868643311,-652.98773856,0.00010521,2]
[353470102,1739868643321,-472.15,0.00010616,2]
[353470103,1739868643335,-200.0,0.00010752,2]
[353470104,1739868643348,-150.0,0.0001087,2]
[353470105,1739868643358,-1394.0,0.000109,2]
[353470106,1739868643368,-555.99,0.00010959,2]